{"text_format":"1","workbook":"xlsx","n_sheets":3,"sheets":["Innskriving","Úrslit","Dómaraseðil"],"not_rendered":{"charts":0,"images":0,"macros":1,"external_links":0,"defined_names":7,"comments":0,"pivot_tables":0},"unopened":[],"bounds":{"document_bytes":16777216,"sheet_cells":100000,"rows_first":2000,"rows_last":500,"rows_between":2000,"halvings":0,"cell_chars":16384,"cell_head_chars":4096},"cells_cut":0,"cells_raw":0,"read":"whole","date_system":"1900"}

{"sheet":"Innskriving","index":0,"n_rows":122,"n_cols":24,"rows_kept":122,"cut":false,"hidden":false,"merged":[]}
[null,"Innskriva í gulu feltunum, byrja við at velja liðini frá innbygda listanum, hareftir spælarar frá  lista.",null,null,null,null,null,null,null,null,null,null,null,null,null,null,null,null,null,null,"LIÐ","DEILD","SPÆLARAR","DÓMARAR"]
[null,"Um spælari ikki er uppskrivaður, klikk á knappin \"Stovna spælara\" og skriva inn niðast í gula raðnum. ",null,null,null,null,null,null,null,null,null,null,null,null,null,null,null,null,null,null,"BFF1","1","Bakka"]
[null,"Seriuinnskriving",null,null,null,null,null,null,null,null,null,null,null,null,null,null,null,null,"<--Vend aftur",null,"BFF1",2,"Spælarar","Allan Larsen"]
[null,"Heimalið:",null,null,null,"Dato:",null,null,null,null,null,null,null,null,null,null,null,null,null,null,"BFF2",3,"Allan Larsen","Árant Berjastein"]
[null,"Vitjandi lið:",null,null,null,"Deild:",null,null,null,null,null,null,null,null,null,null,null,null,null,null,"BFF3",null,"Árant Berjastein","Arthur D. Poulsen"]
[null,null,null,null,null,null,null,null,null,null,null,null,null,null,null,null,null,null,null,null,"BFF4",null,"Arthur D. Poulsen","Bjarni Thomsen"]
[null,"Spælarar heimalið: 1 og 2",null,null,null,"Spælarar útilið: 3 og 4",null,null,null,null,null,null,null,null,null,null,null,null,null,null,"BFF5",null,"Bjarni Thomsen","Carl Bech"]
[null,null,null,null,null,null,null,null,null,null,null,null,null,null,null,null,null,null,null,null,"BFF6",null,"Danial P. Joensen","Carsten Hansen"]
[null,null,null,null,null,null,null,null,null,null,null,null,null,null,null,null,null,null,null,null,"HABI1",null,"Dánjal Olsen","Danial P. Joensen"]
[null,null,null,null,null,null,null,null,null,null,null,null,null,null,null,null,null,null,null,null,"HABI2",null,"Eirikur Mørkøre","Dánjal Olsen"]
[null,"Stovna spælara",null,null,null,null,null,null,null,"Stovna dómara",null,null,null,null,null,null,null,null,null,null,"HABI3",null,"Evert Jacobsen","Eirikur Mørkøre"]
[null,null,null,null,null,null,null,null,null,"Dómarar dystur 1:",null,null,null,null,null,null,null,null,null,null,"HABI4",null,"Eyðun Svalbard","Evert Jacobsen"]
[null,"Dystur 1:",1,null,null,"Dystur 1:",3,null,1,null,null,null,null,null,null,null,null,null,null,null,"HABI5",null,"Flemming Isaksen","Eyðun Svalbard"]
[null,"Navn:",{"$f":"B9","v":0},null,null,"Navn:",{"$f":"F9","v":0},null,2,null,null,null,null,null,null,null,null,null,null,null,"HABI6",null,"Fríðbjartur Reinert","Flemming Isaksen"]
[null,null,"seria","íalt",null,null,"seria","íalt",null,null,null,null,null,null,null,null,null,null,null,null,"KLBF1",null,"Gunnleif Danielsen","Fríðbjartur Reinert"]
[null,1,null,{"$f":"IF(C16=\"\",\"\",C16)","v":""},null,1,null,{"$f":"IF(G16=\"\",\"\",G16)","v":""},null,null,null,null,null,null,null,null,null,null,null,null,"KLBF2",null,"H.C. Hedegaard","Gundur Johansen"]
[null,2,null,{"$f":"IF(C17=\"\",\"\",C17+D16)","v":""},null,2,null,{"$f":"IF(G17=\"\",\"\",G17+H16)","v":""},null,null,null,null,null,null,null,null,null,null,null,null,"KLBF3",null,"Hákun Steingrimsson","Gunnleif Danielsen"]
[null,3,null,{"$f":"IF(C18=\"\",\"\",C18+D17)","v":""},null,3,null,{"$f":"IF(G18=\"\",\"\",G18+H17)","v":""},null,null,null,null,null,null,null,null,null,null,null,null,"KLBF4",null,"Hallur Joensen","H.C. Hedegaard"]
[null,4,null,"",null,4,null,"",null,null,null,null,null,null,null,null,null,null,null,null,"KLBF5",null,"Hans J. Kollsker","Hákun Steingrimsson"]
[null,5,null,"",null,5,null,"",null,null,null,null,null,null,null,null,null,null,null,null,"KLBF6",null,"Hans J. Nystrøm","Hallur Joensen"]
[null,6,null,"",null,6,null,"",null,null,null,null,null,null,null,null,null,null,null,null,"TVBF1",null,"Hanus Mortensen","Hans J. Kollsker"]
[null,7,null,"",null,7,null,"",null,null,null,null,null,null,null,null,null,null,null,null,"TVBF2",null,"Helgi Midjord","Hans J. Nystrøm"]
[null,8,null,"",null,8,null,"",null,null,null,null,null,null,null,null,null,null,null,null,"TVBF3",null,"Hermann Halgadal","Hans Olaf Hentze"]
[null,9,null,"",null,9,null,"",null,null,null,null,null,null,null,null,null,null,null,null,"TVBF4",null,"Høgni Højgaard","Hanus Mortensen"]
[null,10,null,"",null,10,null,"",null,null,null,null,null,null,null,null,null,null,null,null,"TVBF5",null,"Høgni Jøkladal","Helgi Midjord"]
[null,null,null,null,null,null,null,null,null,null,null,null,null,null,null,null,null,null,null,null,"TVBF6",null,"Hugin Albinus","Hermann Halgadal"]
[null,11,null,{"$f":"IF(C27=\"\",\"\",C27+D25)","v":""},null,11,null,{"$f":"IF(G27=\"\",\"\",G27+H25)","v":""},null,null,null,null,null,null,null,null,null,null,null,null,null,null,"Jákup A. Lambaa","Høgni Højgaard"]
[null,12,null,"",null,12,null,{"$f":"IF(G28=\"\",\"\",G28+H27)","v":""},null,null,null,null,null,null,null,null,null,null,null,null,null,null,"Jákup Baldvinsson","Høgni Jøkladal"]
[null,13,null,"",null,13,null,"",null,null,null,null,null,null,null,null,null,null,null,null,null,null,"Jákup Gaard","Hugin Albinus"]
[null,14,null,"",null,14,null,"",null,null,null,null,null,null,null,null,null,null,null,null,null,null,"Jákup í Stórustovu","Jákup A. Lambaa"]
[null,15,null,"",null,15,null,"",null,null,null,null,null,null,null,null,null,null,null,null,null,null,"Jákup Nolsøe","Jákup Baldvinsson"]
[null,16,null,"",null,16,null,"",null,null,null,null,null,null,null,null,null,null,null,null,null,null,"Jákup O. Fløhamar","Jákup Gaard"]
[null,17,null,"",null,17,null,"",null,null,null,null,null,null,null,null,null,null,null,null,null,null,"Jamin I. Zhang","Jákup í Stórustovu"]
[null,18,null,"",null,18,null,"",null,null,null,null,null,null,null,null,null,null,null,null,null,null,"Jan Mohr","Jákup Nolsøe"]
[null,19,null,"",null,19,null,"",null,null,null,null,null,null,null,null,null,null,null,null,null,null,"Jan Müller","Jákup O. Fløhamar"]
[null,20,null,"",null,20,null,"",null,null,null,null,null,null,null,null,null,null,null,null,null,null,"Jarmund Michelsen","Jamin I. Zhang"]
[null,"Úrslit/Miðaltal",{"$f":"IF(D37>H37,2,IF(D37=H37,1,IF(D37<H37,0)))","v":1},{"$f":"IF(SUM(C16:C36)=0,\"\",SUM(C16:C36)/COUNT(C16:C36))","v":""},null,"Úrslit/Miðaltal",{"$f":"IF(H37>D37,2,IF(H37=D37,1,IF(H37<D37,0)))","v":1},{"$f":"IF(SUM(G16:G36)=0,\"\",SUM(G16:G36)/COUNT(G16:G36))","v":""},null,null,null,null,null,null,null,null,null,null,null,null,null,null,"Jens K. Feilberg","Jan Mohr"]
[null,"Størsta seria:",null,{"$f":"MAX(C16:C36)","v":0},null,"Størsta seria:",null,{"$f":"MAX(G16:G36)","v":0},null,null,null,null,null,null,null,null,null,null,null,null,null,null,"Jógvan Jørgensen","Jan Müller"]
[null,null,null,null,null,null,null,null,null,null,null,null,null,null,null,null,null,null,null,null,null,null,"Jógvan Kristiansen","Jarmund Michelsen"]
[null,null,null,null,null,null,null,null,null,"Dómarar dystur 2:",null,null,null,null,null,null,null,null,"<--Vend aftur",null,null,null,"Kjartan Høgnesen","Jens K. Feilberg"]
[null,"Dystur 2:",2,null,null,"Dystur 2:",4,null,1,null,null,null,null,null,null,null,null,null,null,null,null,null,"Kjartan Niclasen","Jógvan Jørgensen"]
[null,"Navn:",{"$f":"B10","v":0},null,null,"Navn:",{"$f":"F10","v":0},null,2,null,null,null,null,null,null,null,null,null,null,null,null,null,"Kristian S Petersen","Jógvan Kristiansen"]
[null,null,"seria","íalt",null,null,"seria","íalt",null,null,null,null,null,null,null,null,null,null,null,null,null,null,"Kristian S. Høgnesen","Kjartan Høgnesen"]
[null,1,null,{"$f":"IF(C44=\"\",\"\",C44)","v":""},null,1,null,{"$f":"IF(G44=\"\",\"\",G44)","v":""},null,null,null,null,null,null,null,null,null,null,null,null,null,null,"Leif Lamhauge","Kjartan Niclasen"]
[null,2,null,{"$f":"IF(C45=\"\",\"\",C45+D44)","v":""},null,2,null,{"$f":"IF(G45=\"\",\"\",G45+H44)","v":""},null,null,null,null,null,null,null,null,null,null,null,null,null,null,"Martin Halgadal","Kristian S Petersen"]
[null,3,null,{"$f":"IF(C46=\"\",\"\",C46+D45)","v":""},null,3,null,{"$f":"IF(G46=\"\",\"\",G46+H45)","v":""},null,null,null,null,null,null,null,null,null,null,null,null,null,null,"Martin Hansen","Kristian S. Høgnesen"]
[null,4,null,"",null,4,null,"",null,null,null,null,null,null,null,null,null,null,null,null,null,null,"Max Rasmussen","Leif Lamhauge"]
[null,5,null,"",null,5,null,"",null,null,null,null,null,null,null,null,null,null,null,null,null,null,"Mortan Berjastein","Magni Jøkladal"]
[null,6,null,"",null,6,null,"",null,null,null,null,null,null,null,null,null,null,null,null,null,null,"Niclas Pearce","Martin Halgadal"]
[null,7,null,"",null,7,null,"",null,null,null,null,null,null,null,null,null,null,null,null,null,null,"Niels Nielsen","Martin Hansen"]
[null,8,null,"",null,8,null,"",null,null,null,null,null,null,null,null,null,null,null,null,null,null,"Niels Petersen","Max Rasmussen"]
[null,9,null,"",null,9,null,"",null,null,null,null,null,null,null,null,null,null,null,null,null,null,"Njál R. Petersen","Mortan Berjastein"]
[null,10,null,"",null,10,null,"",null,null,null,null,null,null,null,null,null,null,null,null,null,null,"Óskar Eiriksson","Niclas Pearce"]
[null,null,null,null,null,null,null,null,null,null,null,null,null,null,null,null,null,null,null,null,null,null,"Øssur Hentze","Niels Nielsen"]
[null,11,null,{"$f":"IF(C55=\"\",\"\",C55+D53)","v":""},null,11,null,{"$f":"IF(G55=\"\",\"\",G55+H53)","v":""},null,null,null,null,null,null,null,null,null,null,null,null,null,null,"Páll Heri Nolsøe","Niels Petersen"]
[null,12,null,{"$f":"IF(C56=\"\",\"\",C56+D55)","v":""},null,12,null,{"$f":"IF(G56=\"\",\"\",G56+H55)","v":""},null,null,null,null,null,null,null,null,null,null,null,null,null,null,"Petur J. Svøðstein","Njál R. Petersen"]
[null,13,null,"",null,13,null,"",null,null,null,null,null,null,null,null,null,null,null,null,null,null,"Petur Juleiv Svøðstein","Óskar Eiriksson"]
[null,14,null,"",null,14,null,"",null,null,null,null,null,null,null,null,null,null,null,null,null,null,"Poul A. Poulsen","Øssur Hentze"]
[null,15,null,"",null,15,null,"",null,null,null,null,null,null,null,null,null,null,null,null,null,null,"Poul Hansen","Páll Heri Nolsøe"]
[null,16,null,"",null,16,null,"",null,null,null,null,null,null,null,null,null,null,null,null,null,null,"Ragnar Joensen","Petur J. Svøðstein"]
[null,17,null,"",null,17,null,"",null,null,null,null,null,null,null,null,null,null,null,null,null,null,"Rani Hansen","Petur Juleiv Svøðstein"]
[null,18,null,"",null,18,null,"",null,null,null,null,null,null,null,null,null,null,null,null,null,null,"Rókur Dimon","Poul A. Poulsen"]
[null,19,null,"",null,19,null,"",null,null,null,null,null,null,null,null,null,null,null,null,null,null,"Rúni Jacobsen","Poul Hansen"]
[null,20,null,"",null,20,null,"",null,null,null,null,null,null,null,null,null,null,null,null,null,null,"Signar Højgaard","Ragnar Joensen"]
[null,"Úrslit/Miðaltal",{"$f":"IF(D65>H65,2,IF(D65=H65,1,IF(D65<H65,0)))","v":1},{"$f":"IF(SUM(C44:C64)=0,\"\",SUM(C44:C64)/COUNT(C44:C64))","v":""},null,"Úrslit/Miðaltal",{"$f":"IF(H65>D65,2,IF(H65=D65,1,IF(H65<D65,0)))","v":1},{"$f":"IF(SUM(G44:G64)=0,\"\",SUM(G44:G64)/COUNT(G44:G64))","v":""},null,null,null,null,null,null,null,null,null,null,null,null,null,null,"Sofus Baldvinsson","Rani Hansen"]
[null,"Størsta seria:",null,{"$f":"MAX(C44:C64)","v":0},null,"Størsta seria:",null,{"$f":"MAX(G44:G64)","v":0},null,null,null,null,null,null,null,null,null,null,null,null,null,null,"Sonhard Johannesen","Rói Einarsson"]
[null,null,null,null,null,null,null,null,null,null,null,null,null,null,null,null,null,null,null,null,null,null,"Steinbjørn í Dali","Rókur Dimon"]
[null,null,null,null,null,null,null,null,null,"Dómarar dystur 3:",null,null,null,null,null,null,null,null,null,null,null,null,"Tóki Steingrimsson","Rúni Jacobsen"]
[null,"Dystur 3:",1,null,null,"Dystur 3:",4,null,1,null,null,null,null,null,null,null,null,null,null,null,null,null,"Tórður Holm","Signar Højgaard"]
[null,"Navn:",{"$f":"B9","v":0},null,null,"Navn:",{"$f":"F10","v":0},null,2,null,null,null,null,null,null,null,null,null,null,null,null,null,"Tóri Traðará","Sofus Baldvinsson"]
[null,null,"seria","íalt",null,null,"seria","íalt",null,null,null,null,null,null,null,null,null,null,null,null,null,null,"Tummas Eli Hansen","Sonhard Johannesen"]
[null,1,null,{"$f":"IF(C72=\"\",\"\",C72)","v":""},null,1,null,{"$f":"IF(G72=\"\",\"\",G72)","v":""},null,null,null,null,null,null,null,null,null,null,"<--Vend aftur",null,null,null,"Tummas Johannesen","Sonni Petersen"]
[null,2,null,{"$f":"IF(C73=\"\",\"\",C73+D72)","v":""},null,2,null,{"$f":"IF(G73=\"\",\"\",G73+H72)","v":""},null,null,null,null,null,null,null,null,null,null,null,null,null,null,"Urbanus Olsen","Steinbjørn í Dali"]
[null,3,null,{"$f":"IF(C74=\"\",\"\",C74+D73)","v":""},null,3,null,{"$f":"IF(G74=\"\",\"\",G74+H73)","v":""},null,null,null,null,null,null,null,null,null,null,null,null,null,null,"Zeljko Bogdanovic","Tóki Steingrimsson"]
[null,4,null,"",null,4,null,"",null,null,null,null,null,null,null,null,null,null,null,null,null,null,"Hans Olaf Hentze","Tórður Holm"]
[null,5,null,"",null,5,null,"",null,null,null,null,null,null,null,null,null,null,null,null,null,null,"Gundur Johansen","Tóri Traðará"]
[null,6,null,"",null,6,null,"",null,null,null,null,null,null,null,null,null,null,null,null,null,null,"Carl Bech","Tummas Eli Hansen"]
[null,7,null,"",null,7,null,"",null,null,null,null,null,null,null,null,null,null,null,null,null,null,"Rói Einarsson","Tummas Johannesen"]
[null,8,null,"",null,8,null,"",null,null,null,null,null,null,null,null,null,null,null,null,null,null,"Magni Jøkladal","Urbanus Olsen"]
[null,9,null,"",null,9,null,"",null,null,null,null,null,null,null,null,null,null,null,null,null,null,null,"Zeljko Bogdanovic"]
[null,10,null,"",null,10,null,""]
[]
[null,11,null,{"$f":"IF(C83=\"\",\"\",C83+D81)","v":""},null,11,null,{"$f":"IF(G83=\"\",\"\",G83+H81)","v":""}]
[null,12,null,{"$f":"IF(C84=\"\",\"\",C84+D83)","v":""},null,12,null,{"$f":"IF(G84=\"\",\"\",G84+H83)","v":""}]
[null,13,null,"",null,13,null,""]
[null,14,null,"",null,14,null,""]
[null,15,null,"",null,15,null,""]
[null,16,null,"",null,16,null,""]
[null,17,null,"",null,17,null,""]
[null,18,null,"",null,18,null,""]
[null,19,null,"",null,19,null,""]
[null,20,null,"",null,20,null,""]
[null,"Úrslit/Miðaltal",{"$f":"IF(D93>H93,2,IF(D93=H93,1,IF(D93<H93,0)))","v":1},{"$f":"IF(SUM(C72:C92)=0,\"\",SUM(C72:C92)/COUNT(C72:C92))","v":""},null,"Úrslit/Miðaltal",{"$f":"IF(H93>D93,2,IF(H93=D93,1,IF(H93<D93,0)))","v":1},{"$f":"IF(SUM(G72:G92)=0,\"\",SUM(G72:G92)/COUNT(G72:G92))","v":""}]
[null,"Størsta seria:",null,{"$f":"MAX(C72:C92)","v":0},null,"Størsta seria:",null,{"$f":"MAX(G72:G92)","v":0}]
[]
[null,null,null,null,null,null,null,null,null,"Dómarar dystur 4:"]
[null,"Dystur 4:",2,null,null,"Dystur 4:",3,null,1,null,null,null,null,null,null,null,null,null,"<--Vend aftur"]
[null,"Navn:",{"$f":"B10","v":0},null,null,"Navn:",{"$f":"F9","v":0},null,2]
[null,null,"seria","íalt",null,null,"seria","íalt"]
[null,1,null,{"$f":"IF(C100=\"\",\"\",C100)","v":""},null,1,null,{"$f":"IF(G100=\"\",\"\",G100)","v":""}]
[null,2,null,{"$f":"IF(C101=\"\",\"\",C101+D100)","v":""},null,2,null,{"$f":"IF(G101=\"\",\"\",G101+H100)","v":""}]
[null,3,null,{"$f":"IF(C102=\"\",\"\",C102+D101)","v":""},null,3,null,{"$f":"IF(G102=\"\",\"\",G102+H101)","v":""}]
[null,4,null,"",null,4,null,""]
[null,5,null,"",null,5,null,""]
[null,6,null,"",null,6,null,""]
[null,7,null,"",null,7,null,""]
[null,8,null,"",null,8,null,""]
[null,9,null,"",null,9,null,""]
[null,10,null,"",null,10,null,""]
[]
[null,11,null,{"$f":"IF(C111=\"\",\"\",C111+D109)","v":""},null,11,null,{"$f":"IF(G111=\"\",\"\",G111+H109)","v":""}]
[null,12,null,{"$f":"IF(C112=\"\",\"\",C112+D111)","v":""},null,12,null,{"$f":"IF(G112=\"\",\"\",G112+H111)","v":""}]
[null,13,null,"",null,13,null,""]
[null,14,null,"",null,14,null,""]
[null,15,null,"",null,15,null,""]
[null,16,null,"",null,16,null,""]
[null,17,null,"",null,17,null,""]
[null,18,null,"",null,18,null,""]
[null,19,null,"",null,19,null,""]
[null,20,null,"",null,20,null,""]
[null,"Úrslit/Miðaltal",{"$f":"IF(D121>H121,2,IF(D121=H121,1,IF(D121<H121,0)))","v":1},{"$f":"IF(SUM(C100:C120)=0,\"\",SUM(C100:C120)/COUNT(C100:C120))","v":""},null,"Úrslit/Miðaltal",{"$f":"IF(H121>D121,2,IF(H121=D121,1,IF(H121<D121,0)))","v":1},{"$f":"IF(SUM(G100:G120)=0,\"\",SUM(G100:G120)/COUNT(G100:G120))","v":""}]
[null,"Størsta seria:",null,{"$f":"MAX(C100:C120)","v":0},null,"Størsta seria:",null,{"$f":"MAX(G100:G120)","v":0}]

{"sheet":"Úrslit","index":1,"n_rows":20,"n_cols":16,"rows_kept":20,"cut":false,"hidden":false,"merged":[[1,3,1,4],[1,8,1,11],[1,14,1,15],[3,4,3,5],[3,6,3,7],[3,8,3,9],[3,10,3,11],[4,1,5,1],[4,2,5,3],[4,8,4,9],[4,10,4,11],[8,14,9,14],[8,15,9,15],[6,1,7,1],[6,2,7,3],[6,8,6,9],[6,10,6,11],[4,14,5,14],[4,15,5,15],[6,14,7,14],[6,15,7,15],[10,14,11,14],[10,15,11,15],[8,1,9,1],[8,2,9,3],[10,1,11,1],[10,2,11,3],[10,4,10,5],[10,6,10,7],[8,4,8,5],[8,6,8,7],[15,8,15,9],[15,14,15,15],[13,3,13,5],[13,8,13,11],[14,8,14,9],[14,14,14,15],[18,3,18,4],[18,6,18,7],[18,9,18,10],[18,12,18,13],[19,3,19,4],[19,6,19,7],[19,9,19,10],[19,12,19,13]]}
[null,"Deild:",{"$f":"Innskriving!G5","v":0}]
[null,"Heimalið:",null,{"$f":"Innskriving!C4","v":0},null,null,"Vitjandi lið:",null,{"$f":"Innskriving!C5","v":0},null,null,null,null,"Dato:",{"$f":"Innskriving!G4","v":"00:00:00"}]
[]
[null,null,"Navn",null,1,null,2,null,3,null,4,null,null,"Tilsamans","Stig","Nr."]
[null,1,{"$f":"Innskriving!B9","v":0},null,null,null,null,null,{"$f":"IF(Innskriving!D36=\"\",0,Innskriving!D36)","v":0},null,{"$f":"IF(Innskriving!D92=\"\",0,Innskriving!D92)","v":0},null,null,{"$f":"I5+K5","v":0},{"$f":"J6+L6","v":0}]
[null,null,null,null,null,null,null,null,{"$f":"Innskriving!D38","v":0},{"$f":"IF(Innskriving!C16=\"\",0,Innskriving!C37)","v":0},{"$f":"Innskriving!D94","v":0},{"$f":"IF(Innskriving!C72=\"\",0,Innskriving!C93)","v":0},null,{"$f":"N5/40","v":0}]
[null,2,{"$f":"Innskriving!B10","v":0},null,null,null,null,null,{"$f":"IF(Innskriving!D120=\"\",0,Innskriving!D120)","v":0},null,{"$f":"IF(Innskriving!D64=\"\",0,Innskriving!D64)","v":0},null,null,{"$f":"I7+K7","v":0},{"$f":"J8+L8","v":0}]
[null,null,null,null,null,null,null,null,{"$f":"Innskriving!D122","v":0},{"$f":"IF(Innskriving!C100=\"\",0,Innskriving!C121)","v":0},{"$f":"Innskriving!D66","v":0},{"$f":"IF(Innskriving!C44=\"\",0,Innskriving!C65)","v":0},null,{"$f":"N7/40","v":0}]
[null,3,{"$f":"Innskriving!F9","v":0},null,{"$f":"IF(Innskriving!H36=\"\",0,Innskriving!H36)","v":0},null,{"$f":"IF(Innskriving!H120=\"\",0,Innskriving!H120)","v":0},null,null,null,null,null,null,{"$f":"E9+G9","v":0},{"$f":"F10+H10","v":0}]
[null,null,null,null,{"$f":"Innskriving!H38","v":0},{"$f":"IF(Innskriving!G16=\"\",0,Innskriving!G37)","v":0},{"$f":"Innskriving!H122","v":0},{"$f":"IF(Innskriving!G100=\"\",0,Innskriving!G121)","v":0},null,null,null,null,null,{"$f":"N9/40","v":0}]
[null,4,{"$f":"Innskriving!F10","v":0},null,{"$f":"IF(Innskriving!H92=\"\",0,Innskriving!H92)","v":0},null,{"$f":"IF(Innskriving!H64=\"\",0,Innskriving!H64)","v":0},null,null,null,null,null,null,{"$f":"E11+G11","v":0},{"$f":"F12+H12","v":0}]
[null,null,null,null,{"$f":"Innskriving!H94","v":0},{"$f":"IF(Innskriving!G72=\"\",0,Innskriving!G93)","v":0},{"$f":"Innskriving!H66","v":0},{"$f":"IF(Innskriving!G44=\"\",0,Innskriving!G65)","v":0},null,null,null,null,null,{"$f":"N11/40","v":0}]
[]
[null,"Heimalið:",null,{"$f":"D2","v":0},null,null,"Vitjandi lið:",null,{"$f":"I2","v":0},null,null,null,null,null,"Besta Umfarið"]
[null,"Eygu:",null,{"$f":"N5+N7","v":0},"Stig:",{"$f":"O5+O7","v":0},"Eygu:",null,{"$f":"N9+N11","v":0},null,"Stig:",{"$f":"O9+O11","v":0},null,"Navn:"]
[null,"Miðaltal:",null,{"$f":"D15/80","v":0},null,null,"Miðaltal:",null,{"$f":"I15/80","v":0},null,null,null,null,"Eygu:",{"$f":"MAX(I6,K6,K8,I8,G10,E10,E12,G12)","v":0}]
[]
[null,"Dómarar:"]
[null,null,"Dystur 1:",{"$f":"IF(Innskriving!J13=\"\",\"\",Innskriving!J13)","v":""},null,"Dystur 2:",{"$f":"IF(Innskriving!J41=\"\",\"\",Innskriving!J41)","v":""},null,"Dystur 3:",{"$f":"IF(Innskriving!J69=\"\",\"\",Innskriving!J69)","v":""},null,"Dystur 4:",{"$f":"IF(Innskriving!J97=\"\",\"\",Innskriving!J97)","v":""}]
[null,null,null,{"$f":"IF(Innskriving!J14=\"\",\"\",Innskriving!J14)","v":""},null,null,{"$f":"IF(Innskriving!J42=\"\",\"\",Innskriving!J42)","v":""},null,null,{"$f":"IF(Innskriving!J70=\"\",\"\",Innskriving!J70)","v":""},null,null,{"$f":"IF(Innskriving!J98=\"\",\"\",Innskriving!J98)","v":""}]

{"sheet":"Dómaraseðil","index":2,"n_rows":59,"n_cols":13,"rows_kept":59,"cut":false,"hidden":false,"merged":[[4,3,4,4],[4,5,4,6],[4,9,4,10],[4,11,4,12],[34,3,34,4],[34,5,34,6],[34,9,34,10],[34,11,34,12]]}
[]
[]
[null,null,"Dystur:",{"$f":"Innskriving!C4","v":0},{"$f":"Innskriving!C5","v":0},"Deild:",{"$f":"Innskriving!G5","v":0},null,"Dato:",{"$f":"Innskriving!G4","v":"00:00:00"}]
[]
[null,null,"Navn:",{"$f":"Innskriving!C14","v":0},null,{"$f":"Innskriving!G14","v":0},null,null,"Navn:",{"$f":"Innskriving!C42","v":0},null,{"$f":"Innskriving!G42","v":0}]
[null,null,1,{"$f":"Innskriving!C16","v":0},{"$f":"Innskriving!D16","v":""},{"$f":"Innskriving!G16","v":0},{"$f":"Innskriving!H16","v":""},null,1,{"$f":"Innskriving!C44","v":0},{"$f":"Innskriving!D44","v":""},{"$f":"Innskriving!G44","v":0},{"$f":"Innskriving!H44","v":""}]
[null,null,2,{"$f":"Innskriving!C17","v":0},{"$f":"Innskriving!D17","v":""},{"$f":"Innskriving!G17","v":0},{"$f":"Innskriving!H17","v":""},null,2,{"$f":"Innskriving!C45","v":0},{"$f":"Innskriving!D45","v":""},{"$f":"Innskriving!G45","v":0},{"$f":"Innskriving!H45","v":""}]
[null,null,3,{"$f":"Innskriving!C18","v":0},{"$f":"Innskriving!D18","v":""},{"$f":"Innskriving!G18","v":0},{"$f":"Innskriving!H18","v":""},null,3,{"$f":"Innskriving!C46","v":0},{"$f":"Innskriving!D46","v":""},{"$f":"Innskriving!G46","v":0},{"$f":"Innskriving!H46","v":""}]
[null,null,4,{"$f":"Innskriving!C19","v":0},{"$f":"Innskriving!D19","v":""},{"$f":"Innskriving!G19","v":0},{"$f":"Innskriving!H19","v":""},null,4,{"$f":"Innskriving!C47","v":0},{"$f":"Innskriving!D47","v":""},{"$f":"Innskriving!G47","v":0},{"$f":"Innskriving!H47","v":""}]
[null,null,5,{"$f":"Innskriving!C20","v":0},{"$f":"Innskriving!D20","v":""},{"$f":"Innskriving!G20","v":0},{"$f":"Innskriving!H20","v":""},null,5,{"$f":"Innskriving!C48","v":0},{"$f":"Innskriving!D48","v":""},{"$f":"Innskriving!G48","v":0},{"$f":"Innskriving!H48","v":""}]
[null,null,6,{"$f":"Innskriving!C21","v":0},{"$f":"Innskriving!D21","v":""},{"$f":"Innskriving!G21","v":0},{"$f":"Innskriving!H21","v":""},null,6,{"$f":"Innskriving!C49","v":0},{"$f":"Innskriving!D49","v":""},{"$f":"Innskriving!G49","v":0},{"$f":"Innskriving!H49","v":""}]
[null,null,7,{"$f":"Innskriving!C22","v":0},{"$f":"Innskriving!D22","v":""},{"$f":"Innskriving!G22","v":0},{"$f":"Innskriving!H22","v":""},null,7,{"$f":"Innskriving!C50","v":0},{"$f":"Innskriving!D50","v":""},{"$f":"Innskriving!G50","v":0},{"$f":"Innskriving!H50","v":""}]
[null,null,8,{"$f":"Innskriving!C23","v":0},{"$f":"Innskriving!D23","v":""},{"$f":"Innskriving!G23","v":0},{"$f":"Innskriving!H23","v":""},null,8,{"$f":"Innskriving!C51","v":0},{"$f":"Innskriving!D51","v":""},{"$f":"Innskriving!G51","v":0},{"$f":"Innskriving!H51","v":""}]
[null,null,9,{"$f":"Innskriving!C24","v":0},{"$f":"Innskriving!D24","v":""},{"$f":"Innskriving!G24","v":0},{"$f":"Innskriving!H24","v":""},null,9,{"$f":"Innskriving!C52","v":0},{"$f":"Innskriving!D52","v":""},{"$f":"Innskriving!G52","v":0},{"$f":"Innskriving!H52","v":""}]
[null,null,10,{"$f":"Innskriving!C25","v":0},{"$f":"Innskriving!D25","v":""},{"$f":"Innskriving!G25","v":0},{"$f":"Innskriving!H25","v":""},null,10,{"$f":"Innskriving!C53","v":0},{"$f":"Innskriving!D53","v":""},{"$f":"Innskriving!G53","v":0},{"$f":"Innskriving!H53","v":""}]
[]
[null,null,11,{"$f":"Innskriving!C27","v":0},{"$f":"Innskriving!D27","v":""},{"$f":"Innskriving!G27","v":0},{"$f":"Innskriving!H27","v":""},null,11,{"$f":"Innskriving!C55","v":0},{"$f":"Innskriving!D55","v":""},{"$f":"Innskriving!G55","v":0},{"$f":"Innskriving!H55","v":""}]
[null,null,12,{"$f":"Innskriving!C28","v":0},{"$f":"Innskriving!D28","v":""},{"$f":"Innskriving!G28","v":0},{"$f":"Innskriving!H28","v":""},null,12,{"$f":"Innskriving!C56","v":0},{"$f":"Innskriving!D56","v":""},{"$f":"Innskriving!G56","v":0},{"$f":"Innskriving!H56","v":""}]
[null,null,13,{"$f":"Innskriving!C29","v":0},{"$f":"Innskriving!D29","v":""},{"$f":"Innskriving!G29","v":0},{"$f":"Innskriving!H29","v":""},null,13,{"$f":"Innskriving!C57","v":0},{"$f":"Innskriving!D57","v":""},{"$f":"Innskriving!G57","v":0},{"$f":"Innskriving!H57","v":""}]
[null,null,14,{"$f":"Innskriving!C30","v":0},{"$f":"Innskriving!D30","v":""},{"$f":"Innskriving!G30","v":0},{"$f":"Innskriving!H30","v":""},null,14,{"$f":"Innskriving!C58","v":0},{"$f":"Innskriving!D58","v":""},{"$f":"Innskriving!G58","v":0},{"$f":"Innskriving!H58","v":""}]
[null,null,15,{"$f":"Innskriving!C31","v":0},{"$f":"Innskriving!D31","v":""},{"$f":"Innskriving!G31","v":0},{"$f":"Innskriving!H31","v":""},null,15,{"$f":"Innskriving!C59","v":0},{"$f":"Innskriving!D59","v":""},{"$f":"Innskriving!G59","v":0},{"$f":"Innskriving!H59","v":""}]
[null,null,16,{"$f":"Innskriving!C32","v":0},{"$f":"Innskriving!D32","v":""},{"$f":"Innskriving!G32","v":0},{"$f":"Innskriving!H32","v":""},null,16,{"$f":"Innskriving!C60","v":0},{"$f":"Innskriving!D60","v":""},{"$f":"Innskriving!G60","v":0},{"$f":"Innskriving!H60","v":""}]
[null,null,17,{"$f":"Innskriving!C33","v":0},{"$f":"Innskriving!D33","v":""},{"$f":"Innskriving!G33","v":0},{"$f":"Innskriving!H33","v":""},null,17,{"$f":"Innskriving!C61","v":0},{"$f":"Innskriving!D61","v":""},{"$f":"Innskriving!G61","v":0},{"$f":"Innskriving!H61","v":""}]
[null,null,18,{"$f":"Innskriving!C34","v":0},{"$f":"Innskriving!D34","v":""},{"$f":"Innskriving!G34","v":0},{"$f":"Innskriving!H34","v":""},null,18,{"$f":"Innskriving!C62","v":0},{"$f":"Innskriving!D62","v":""},{"$f":"Innskriving!G62","v":0},{"$f":"Innskriving!H62","v":""}]
[null,null,19,{"$f":"Innskriving!C35","v":0},{"$f":"Innskriving!D35","v":""},{"$f":"Innskriving!G35","v":0},{"$f":"Innskriving!H35","v":""},null,19,{"$f":"Innskriving!C63","v":0},{"$f":"Innskriving!D63","v":""},{"$f":"Innskriving!G63","v":0},{"$f":"Innskriving!H63","v":""}]
[null,null,20,{"$f":"Innskriving!C36","v":0},{"$f":"Innskriving!D36","v":""},{"$f":"Innskriving!G36","v":0},{"$f":"Innskriving!H36","v":""},null,20,{"$f":"Innskriving!C64","v":0},{"$f":"Innskriving!D64","v":""},{"$f":"Innskriving!G64","v":0},{"$f":"Innskriving!H64","v":""}]
[]
[null,null,"Dómari 1:",{"$f":"Innskriving!J13","v":0},null,null,null,null,"Dómari 1:",{"$f":"Innskriving!J41","v":0}]
[null,null,"Dómari 2:",{"$f":"Innskriving!J14","v":0},null,null,null,null,"Dómari 2:",{"$f":"Innskriving!J42","v":0}]
[]
[]
[]
[null,null,"Dystur:",{"$f":"D3","v":0},{"$f":"E3","v":0},"Deild:",{"$f":"G3","v":0},null,"Dato:",{"$f":"J3","v":"00:00:00"}]
[]
[null,null,"Navn:",{"$f":"Innskriving!C70","v":0},null,{"$f":"Innskriving!G70","v":0},null,null,"Navn:",{"$f":"Innskriving!C98","v":0},null,{"$f":"Innskriving!G98","v":0}]
[null,null,1,{"$f":"Innskriving!C72","v":0},{"$f":"Innskriving!D72","v":""},{"$f":"Innskriving!G72","v":0},{"$f":"Innskriving!H72","v":""},null,1,{"$f":"Innskriving!C100","v":0},{"$f":"Innskriving!D100","v":""},{"$f":"Innskriving!G100","v":0},{"$f":"Innskriving!H100","v":""}]
[null,null,2,{"$f":"Innskriving!C73","v":0},{"$f":"Innskriving!D73","v":""},{"$f":"Innskriving!G73","v":0},{"$f":"Innskriving!H73","v":""},null,2,{"$f":"Innskriving!C101","v":0},{"$f":"Innskriving!D101","v":""},{"$f":"Innskriving!G101","v":0},{"$f":"Innskriving!H101","v":""}]
[null,null,3,{"$f":"Innskriving!C74","v":0},{"$f":"Innskriving!D74","v":""},{"$f":"Innskriving!G74","v":0},{"$f":"Innskriving!H74","v":""},null,3,{"$f":"Innskriving!C102","v":0},{"$f":"Innskriving!D102","v":""},{"$f":"Innskriving!G102","v":0},{"$f":"Innskriving!H102","v":""}]
[null,null,4,{"$f":"Innskriving!C75","v":0},{"$f":"Innskriving!D75","v":""},{"$f":"Innskriving!G75","v":0},{"$f":"Innskriving!H75","v":""},null,4,{"$f":"Innskriving!C103","v":0},{"$f":"Innskriving!D103","v":""},{"$f":"Innskriving!G103","v":0},{"$f":"Innskriving!H103","v":""}]
[null,null,5,{"$f":"Innskriving!C76","v":0},{"$f":"Innskriving!D76","v":""},{"$f":"Innskriving!G76","v":0},{"$f":"Innskriving!H76","v":""},null,5,{"$f":"Innskriving!C104","v":0},{"$f":"Innskriving!D104","v":""},{"$f":"Innskriving!G104","v":0},{"$f":"Innskriving!H104","v":""}]
[null,null,6,{"$f":"Innskriving!C77","v":0},{"$f":"Innskriving!D77","v":""},{"$f":"Innskriving!G77","v":0},{"$f":"Innskriving!H77","v":""},null,6,{"$f":"Innskriving!C105","v":0},{"$f":"Innskriving!D105","v":""},{"$f":"Innskriving!G105","v":0},{"$f":"Innskriving!H105","v":""}]
[null,null,7,{"$f":"Innskriving!C78","v":0},{"$f":"Innskriving!D78","v":""},{"$f":"Innskriving!G78","v":0},{"$f":"Innskriving!H78","v":""},null,7,{"$f":"Innskriving!C106","v":0},{"$f":"Innskriving!D106","v":""},{"$f":"Innskriving!G106","v":0},{"$f":"Innskriving!H106","v":""}]
[null,null,8,{"$f":"Innskriving!C79","v":0},{"$f":"Innskriving!D79","v":""},{"$f":"Innskriving!G79","v":0},{"$f":"Innskriving!H79","v":""},null,8,{"$f":"Innskriving!C107","v":0},{"$f":"Innskriving!D107","v":""},{"$f":"Innskriving!G107","v":0},{"$f":"Innskriving!H107","v":""}]
[null,null,9,{"$f":"Innskriving!C80","v":0},{"$f":"Innskriving!D80","v":""},{"$f":"Innskriving!G80","v":0},{"$f":"Innskriving!H80","v":""},null,9,{"$f":"Innskriving!C108","v":0},{"$f":"Innskriving!D108","v":""},{"$f":"Innskriving!G108","v":0},{"$f":"Innskriving!H108","v":""}]
[null,null,10,{"$f":"Innskriving!C81","v":0},{"$f":"Innskriving!D81","v":""},{"$f":"Innskriving!G81","v":0},{"$f":"Innskriving!H81","v":""},null,10,{"$f":"Innskriving!C109","v":0},{"$f":"Innskriving!D109","v":""},{"$f":"Innskriving!G109","v":0},{"$f":"Innskriving!H109","v":""}]
[]
[null,null,11,{"$f":"Innskriving!C83","v":0},{"$f":"Innskriving!D83","v":""},{"$f":"Innskriving!G83","v":0},{"$f":"Innskriving!H83","v":""},null,11,{"$f":"Innskriving!C111","v":0},{"$f":"Innskriving!D111","v":""},{"$f":"Innskriving!G111","v":0},{"$f":"Innskriving!H111","v":""}]
[null,null,12,{"$f":"Innskriving!C84","v":0},{"$f":"Innskriving!D84","v":""},{"$f":"Innskriving!G84","v":0},{"$f":"Innskriving!H84","v":""},null,12,{"$f":"Innskriving!C112","v":0},{"$f":"Innskriving!D112","v":""},{"$f":"Innskriving!G112","v":0},{"$f":"Innskriving!H112","v":""}]
[null,null,13,{"$f":"Innskriving!C85","v":0},{"$f":"Innskriving!D85","v":""},{"$f":"Innskriving!G85","v":0},{"$f":"Innskriving!H85","v":""},null,13,{"$f":"Innskriving!C113","v":0},{"$f":"Innskriving!D113","v":""},{"$f":"Innskriving!G113","v":0},{"$f":"Innskriving!H113","v":""}]
[null,null,14,{"$f":"Innskriving!C86","v":0},{"$f":"Innskriving!D86","v":""},{"$f":"Innskriving!G86","v":0},{"$f":"Innskriving!H86","v":""},null,14,{"$f":"Innskriving!C114","v":0},{"$f":"Innskriving!D114","v":""},{"$f":"Innskriving!G114","v":0},{"$f":"Innskriving!H114","v":""}]
[null,null,15,{"$f":"Innskriving!C87","v":0},{"$f":"Innskriving!D87","v":""},{"$f":"Innskriving!G87","v":0},{"$f":"Innskriving!H87","v":""},null,15,{"$f":"Innskriving!C115","v":0},{"$f":"Innskriving!D115","v":""},{"$f":"Innskriving!G115","v":0},{"$f":"Innskriving!H115","v":""}]
[null,null,16,{"$f":"Innskriving!C88","v":0},{"$f":"Innskriving!D88","v":""},{"$f":"Innskriving!G88","v":0},{"$f":"Innskriving!H88","v":""},null,16,{"$f":"Innskriving!C116","v":0},{"$f":"Innskriving!D116","v":""},{"$f":"Innskriving!G116","v":0},{"$f":"Innskriving!H116","v":""}]
[null,null,17,{"$f":"Innskriving!C89","v":0},{"$f":"Innskriving!D89","v":""},{"$f":"Innskriving!G89","v":0},{"$f":"Innskriving!H89","v":""},null,17,{"$f":"Innskriving!C117","v":0},{"$f":"Innskriving!D117","v":""},{"$f":"Innskriving!G117","v":0},{"$f":"Innskriving!H117","v":""}]
[null,null,18,{"$f":"Innskriving!C90","v":0},{"$f":"Innskriving!D90","v":""},{"$f":"Innskriving!G90","v":0},{"$f":"Innskriving!H90","v":""},null,18,{"$f":"Innskriving!C118","v":0},{"$f":"Innskriving!D118","v":""},{"$f":"Innskriving!G118","v":0},{"$f":"Innskriving!H118","v":""}]
[null,null,19,{"$f":"Innskriving!C91","v":0},{"$f":"Innskriving!D91","v":""},{"$f":"Innskriving!G91","v":0},{"$f":"Innskriving!H91","v":""},null,19,{"$f":"Innskriving!C119","v":0},{"$f":"Innskriving!D119","v":""},{"$f":"Innskriving!G119","v":0},{"$f":"Innskriving!H119","v":""}]
[null,null,20,{"$f":"Innskriving!C92","v":0},{"$f":"Innskriving!D92","v":""},{"$f":"Innskriving!G92","v":0},{"$f":"Innskriving!H92","v":""},null,20,{"$f":"Innskriving!C120","v":0},{"$f":"Innskriving!D120","v":""},{"$f":"Innskriving!G120","v":0},{"$f":"Innskriving!H120","v":""}]
[]
[null,null,"Dómari 1:",{"$f":"Innskriving!J69","v":0},null,null,null,null,"Dómari 1:",{"$f":"Innskriving!J97","v":0}]
[null,null,"Dómari 2:",{"$f":"Innskriving!J70","v":0},null,null,null,null,"Dómari 2:",{"$f":"Innskriving!J98","v":0}]